bitfinex/quotes_BTCUSD_20220111
["timestamp","ask_amount","ask_price","bid_price","bid_amount"]
[1641911711673,0.05333767,41288.0,41286.0,0.006]
[1641911711871,0.05333767,41288.0,41285.0,0.00026389]
[1641911712072,0.37372374,41286.0,41285.0,0.00026389]
[1641911712271,0.02372374,41286.0,41285.0,0.00026389]
[1641911712570,0.01,41288.0,41285.0,0.00026389]
[1641911712771,0.01,41288.0,41285.0,0.001]
[1641911713371,0.01,41288.0,41285.0,0.061537]
[1641911713769,0.01,41288.0,41285.0,0.25474007]
[1641911713970,0.01,41288.0,41285.0,0.25374007]
[1641911714372,0.01,41288.0,41286.0,0.060532]
[1641911714773,0.02372374,41289.0,41287.0,1.3]
[1641911714974,0.00129146,41295.0,41294.0,0.28014352]
[1641911715172,0.44372374,41297.0,41294.0,0.28014352]
[1641911715829,0.44372374,41297.0,41295.0,0.060517]
[1641911716029,0.44372374,41297.0,41296.0,0.09]
[1641911716231,0.90707074,41297.0,41296.0,0.09]
[1641911716431,0.4188,41297.0,41296.0,0.09]
[1641911716831,0.44252374,41297.0,41296.0,0.093]
[1641911717232,0.45252374,41297.0,41296.0,0.093]
[1641911717430,0.45252374,41297.0,41296.0,0.36184156]
[1641911717634,0.4288,41297.0,41296.0,0.36184156]
[1641911717836,0.00074757,41306.0,41297.0,1.3]
[1641911718042,0.7531066,41317.0,41303.0,0.12225441]
[1641911718340,0.7531066,41317.0,41302.0,0.060494]
[1641911718341,0.85,41316.0,41310.0,0.31344914]
[1641911718541,0.30165326,41315.0,41310.0,0.31344914]
[1641911718734,0.30165326,41315.0,41310.0,0.71182055]
[1641911718936,0.01,41311.0,41310.0,0.71182055]
[1641911719167,0.01,41311.0,41310.0,0.31344914]
[1641911719569,0.01,41311.0,41310.0,0.37394114]
[1641911719770,0.01,41311.0,41310.0,0.060492]
[1641911719971,0.56,41311.0,41306.0,0.11702771]
[1641911720170,0.00129652,41310.0,41306.0,0.11702771]
[1641911720769,0.41014523,41310.0,41306.0,0.18053071]
[1641911720976,0.01,41311.0,41306.0,0.12002771]
[1641911721872,0.44980848,41310.0,41306.0,0.07562771]
[1641911722071,0.01,41311.0,41308.0,0.060503]
[1641911722270,0.01,41311.0,41306.0,0.07262771]
[1641911722271,0.01083114,41311.0,41306.0,0.07262771]
[1641911722931,0.01483114,41311.0,41308.0,0.060504]
[1641911723527,0.25483494,41311.0,41308.0,0.060504]
[1641911723726,0.08983494,41311.0,41308.0,0.060504]
[1641911724125,3.494e-05,41311.0,41308.0,0.060497]
[1641911724327,3.494e-05,41311.0,41308.0,0.120985]
[1641911724527,1.2815,41323.0,41315.0,0.060482]
[1641911724830,1.2815,41323.0,41318.0,0.05]
[1641911725127,0.31551455,41319.0,41311.0,0.4560562]
[1641911725426,0.31651455,41319.0,41311.0,0.4560562]
[1641911725626,0.31651455,41319.0,41316.0,0.120971]
[1641911725828,0.001,41319.0,41316.0,0.120971]
[1641911726875,0.8525,41323.0,41317.0,0.2484184]
[1641911727076,0.00074245,41320.0,41319.0,0.060482]
[1641911727477,0.00074245,41320.0,41316.0,0.125971]
[1641911728079,0.00074245,41320.0,41317.0,0.27986957]
[1641911728080,0.30074245,41320.0,41317.0,0.27986957]
[1641911728277,0.00074244,41320.0,41317.0,0.27986957]
[1641911728880,0.00074244,41320.0,41317.0,0.28386957]
[1641911729080,0.00074244,41320.0,41319.0,0.060487]
[1641911729280,0.00074244,41320.0,41319.0,0.059487]
[1641911729480,0.00074244,41321.0,41319.0,0.059487]
[1641911729883,0.00074244,41321.0,41319.0,0.119964]
[1641911730283,0.00074244,41321.0,41319.0,0.059487]
[1641911730522,0.001,41320.0,41319.0,0.059487]
[1641911730722,0.001,41320.0,41319.0,0.063487]
[1641911732021,0.001,41320.0,41319.0,0.059487]
[1641911732721,0.001,41320.0,41319.0,0.063487]
[1641911733325,0.001,41320.0,41319.0,0.004]
[1641911733722,1.05227958,41320.0,41319.0,0.004]
[1641911733924,1.386826,41320.0,41319.0,0.004]
[1641911734173,1.05227958,41320.0,41313.0,0.3396085]
[1641911734375,0.05227958,41320.0,41313.0,0.3396085]
[1641911734773,0.00227958,41320.0,41313.0,0.3426085]
[1641911735375,0.00227958,41320.0,41313.0,0.003]
[1641911735575,0.00074773,41319.0,41314.0,0.060494]
[1641911735875,0.00074773,41319.0,41315.0,0.060488]
[1641911736274,0.00074773,41319.0,41317.0,0.30250004]
[1641911736875,0.00074773,41319.0,41317.0,0.30750004]
[1641911737076,0.00074773,41319.0,41317.0,0.36798204]
[1641911737277,0.00074773,41319.0,41318.0,0.40868589]
[1641911737477,0.00074773,41319.0,41317.0,0.005]
[1641911737939,0.00127589,41318.0,41317.0,0.005]
[1641911738135,0.008417,41318.0,41307.0,0.18145]
[1641911738335,0.06049402,41316.0,41307.0,0.18145]
[1641911738535,0.06049402,41316.0,41310.0,0.30871756]
[1641911738835,0.06049402,41316.0,41311.0,0.07561837]
[1641911739139,0.0007474,41316.0,41311.0,0.19659637]
[1641911739334,0.06049486,41315.0,41311.0,0.19659637]
[1641911739535,0.0007474,41316.0,41311.0,0.19659637]
[1641911740136,0.0007474,41316.0,41311.0,0.25408637]
[1641911740735,0.0007474,41316.0,41311.0,0.19859637]
[1641911741337,0.0007474,41316.0,41311.0,0.24680398]
[1641911741540,0.06049493,41315.0,41311.0,0.24680398]
[1641911741777,0.27882011,41314.0,41311.0,0.12582598]
[1641911741974,0.41183527,41313.0,41311.0,0.04820761]
[1641911742174,0.57929672,41312.0,41311.0,0.04820761]
[1641911742376,0.58055437,41312.0,41311.0,0.04820761]
[1641911742577,1.95280488,41312.0,41311.0,0.04820761]
[1641911742778,0.65,41311.0,41305.0,0.00027562]
[1641911742975,0.00125666,41306.0,41305.0,0.00027562]
[1641911743975,0.00125666,41306.0,41303.0,0.00027566]
[1641911744175,0.00125666,41306.0,41303.0,0.34042136]
[1641911744382,0.00787273,41309.0,41304.0,0.3870301]
[1641911744577,0.12100625,41315.0,41304.0,0.3870301]
[1641911744578,0.00125594,41315.0,41304.0,0.3870301]
[1641911744880,0.06175255,41315.0,41306.0,0.120994]
[1641911745076,0.00149487,41313.0,41306.0,0.120994]
[1641911745276,0.00074742,41313.0,41311.0,0.25968379]
[1641911745529,0.00074742,41313.0,41306.0,0.120994]
[1641911746229,0.0014949,41313.0,41306.0,0.120994]
[1641911746429,0.00074748,41313.0,41306.0,0.120994]
[1641911746630,0.00074748,41313.0,41311.0,0.060495]
[1641911747331,0.00074748,41313.0,41312.0,0.26893559]
[1641911747530,0.00125594,41315.0,41311.0,0.060495]
[1641911747531,0.0007475,41314.0,41311.0,0.060495]
[1641911748133,0.0007475,41314.0,41313.0,0.36447147]
[1641911748630,0.0007475,41314.0,41313.0,0.69458515]
[1641911748830,0.0007475,41315.0,41313.0,0.69858515]
[1641911749032,0.0007475,41315.0,41314.0,0.410487]
[1641911749875,0.001,41320.0,41314.0,0.060487]
[1641911749876,0.00074748,41317.0,41314.0,0.060487]
[1641911750484,0.001,41320.0,41319.0,0.12022618]
[1641911750980,0.42,41323.0,41319.0,0.17022618]
[1641911751179,0.42,41323.0,41321.0,0.18141552]
[1641911751388,0.42,41323.0,41322.0,0.05]
[1641911751577,0.00728648,41337.0,41329.0,0.060464]
[1641911751776,0.00728648,41337.0,41332.0,0.4675334]
[1641911752378,0.42,41350.0,41332.0,0.5175334]
[1641911752579,0.29899205,41348.0,41339.0,0.060454]
[1641911752779,0.7531066,41354.0,41339.0,0.060454]
[1641911753034,0.42,41355.0,41339.0,0.060454]
[1641911753233,0.40530904,41352.0,41340.0,0.41891353]
[1641911753438,0.5568875,41357.0,41339.0,0.060454]
[1641911753634,0.5568875,41357.0,41342.0,0.12090727]
[1641911753838,0.1368875,41357.0,41342.0,0.1221356]
[1641911754036,0.5564,41359.0,41342.0,0.00122833]
[1641911754235,1.4388,41360.0,41355.0,0.27615824]
[1641911754439,0.4415,41360.0,41353.0,0.40788694]
[1641911754634,0.001,41356.0,41355.0,0.060427]
[1641911754837,0.001,41356.0,41354.0,0.120855]
[1641911755234,0.001,41356.0,41355.0,0.12085801]
[1641911755433,0.001,41356.0,41354.0,0.12209306]
[1641911755637,0.0007487,41358.0,41355.0,0.0444]
[1641911755834,0.00299434,41364.0,41358.0,0.00124853]
[1641911756236,0.00299434,41364.0,41360.0,0.12084662]
[1641911756436,0.00299434,41364.0,41355.0,0.120831]
[1641911756677,0.2603384,41369.0,41363.0,0.060425]
[1641911756883,0.2603384,41369.0,41363.0,0.059425]
[1641911757283,0.1,41364.0,41352.0,0.120851]
[1641911757484,0.1,41364.0,41341.0,0.0430951]
[1641911757485,0.70982674,41363.0,41341.0,0.06045]
[1641911757783,1.30123454,41366.0,41345.0,0.060449]
[1641911757784,0.00126162,41355.0,41345.0,0.060449]
[1641911757980,0.3085,41373.0,41342.0,0.120898]
[1641911757981,0.32835874,41365.0,41346.0,0.059444]
[1641911758180,0.33335874,41372.0,41346.0,0.181287]
[1641911758382,0.1,41368.0,41346.0,0.181287]
[1641911758580,0.00127641,41359.0,41346.0,0.181287]
[1641911758782,0.29308063,41366.0,41342.0,0.0344]
[1641911758984,0.00060117,41361.0,41353.0,0.479839]
[1641911759181,0.00060117,41361.0,41353.0,0.418402]
[1641911759384,0.00060117,41361.0,41349.0,0.12086198]
[1641911759583,0.00060117,41361.0,41342.0,0.0344]
[1641911759584,0.00127263,41359.0,41342.0,0.0344]
[1641911759985,0.00127263,41359.0,41347.0,0.32162853]
[1641911760441,0.001,41348.0,41347.0,0.32162853]
[1641911760632,0.001,41348.0,41346.0,0.060446]
[1641911760930,0.001,41348.0,41338.0,2.6508524]
[1641911761129,0.001,41348.0,41339.0,0.120899]
[1641911761729,0.001,41348.0,41345.0,0.36429748]
[1641911761929,0.001,41348.0,41346.0,0.060443]
[1641911762730,0.001,41348.0,41346.0,0.120886]
[1641911763032,0.004,41348.0,41346.0,0.125886]
[1641911763231,0.004,41348.0,41346.0,0.175886]
[1641911763629,0.0008605,41360.0,41347.0,1.69408112]
[1641911763831,0.0007655,41360.0,41358.0,0.24532784]
[1641911764032,0.0007655,41360.0,41358.0,0.65856978]
[1641911764279,0.0007655,41360.0,41358.0,0.70856978]
[1641911764781,0.0007655,41360.0,41359.0,1.69297441]
[1641911764884,0.00306123,41370.0,41360.0,1.3]
[1641911765083,0.00291896,41370.0,41365.0,0.060407]
[1641911765279,0.00291896,41370.0,41365.0,0.181214]
[1641911765481,0.00291896,41370.0,41368.0,0.32370758]
[1641911765786,0.11875593,41383.0,41369.0,0.3]
[1641911765978,0.00120958,41387.0,41377.0,0.34347358]
[1641911766179,0.00120958,41387.0,41374.0,0.060402]
[1641911766481,0.0483,41390.0,41370.0,0.120804]
[1641911766482,0.0483,41390.0,41370.0,0.1]
[1641911766684,0.25836964,41388.0,41370.0,0.17251468]
[1641911766979,0.0483,41390.0,41382.0,0.05]
[1641911767180,0.0483,41390.0,41385.0,0.18113939]
[1641911767584,0.00210326,41387.0,41386.0,0.05]
[1641911767781,0.00034619,41395.0,41387.0,1.3]
[1641911768034,0.00034619,41395.0,41388.0,0.8944709]
[1641911768233,1.09271379,41402.0,41388.0,0.8944709]
[1641911768234,0.4415,41402.0,41392.0,0.30106061]
[1641911768436,0.4415,41402.0,41396.0,0.060363]
[1641911768635,0.009677,41409.0,41397.0,0.15]
[1641911768834,0.009677,41409.0,41399.0,0.120719]
[1641911769136,0.009477,41409.0,41401.0,0.47741344]
[1641911769342,0.55818325,41421.0,41405.0,0.15]
[1641911769343,0.08526627,41416.0,41405.0,0.15]
[1641911769536,0.08526627,41416.0,41412.0,0.06033971]
[1641911769732,0.08526627,41416.0,41415.0,0.15]
[1641911769934,0.08526627,41416.0,41406.0,0.0444]
[1641911770334,0.31190816,41412.0,41406.0,0.0444]
[1641911770534,0.08526627,41416.0,41406.0,0.0444]
[1641911770535,0.3296195,41411.0,41406.0,0.0444]
[1641911770735,0.4159,41430.0,41406.0,0.0444]
[1641911770937,0.00124019,41414.0,41406.0,0.002]
[1641911771136,0.00059009,41413.0,41406.0,0.002]
[1641911771536,0.00059009,41413.0,41406.0,0.34654381]
[1641911771782,0.00059009,41413.0,41411.0,0.09999999]
[1641911771983,0.00059009,41413.0,41412.0,0.34999999]
[1641911772281,0.00059009,41413.0,41412.0,0.74999999]
[1641911772482,0.00128347,41422.0,41407.0,0.09999999]
[1641911772686,0.00122212,41418.0,41404.0,0.42961949]
[1641911772883,0.2510016,41422.0,41417.0,0.09999999]
[1641911773083,0.2510016,41422.0,41412.0,0.004]
[1641911773084,0.2510016,41422.0,41413.0,0.09999999]
[1641911773484,0.00122041,41428.0,41416.0,0.45643989]
[1641911773688,0.00344079,41418.0,41416.0,0.45643989]
[1641911773884,0.00344079,41418.0,41416.0,0.51677989]
[1641911774085,0.09147615,41437.0,41417.0,1.3]
[1641911774286,0.7531066,41429.0,41417.0,1.30128115]
[1641911774488,0.7531066,41429.0,41423.0,0.38407076]
[1641911774686,0.24470137,41432.0,41420.0,0.15]
[1641911774886,0.7531066,41429.0,41426.0,0.2980978]
[1641911775085,0.7531066,41429.0,41428.0,0.89999999]
[1641911775292,0.2,41438.0,41428.0,1.04999999]
[1641911775530,0.2,41438.0,41428.0,1.00125107]
[1641911775737,0.2,41438.0,41436.0,0.09999999]
[1641911775935,0.00197201,41437.0,41436.0,0.00122739]
[1641911776129,0.00197201,41437.0,41436.0,0.80422323]
[1641911776329,0.19697201,41438.0,41437.0,1.3]
[1641911776531,0.08,41449.0,41442.0,0.05426855]
[1641911776733,0.75894325,41463.0,41443.0,0.41473969]
[1641911776931,0.75894325,41463.0,41446.0,0.120562]
[1641911777132,0.75894325,41463.0,41456.0,0.242275]
[1641911777133,0.55818325,41463.0,41456.0,0.242275]
[1641911777330,0.55818325,41463.0,41447.0,0.41050584]
[1641911777331,0.01005351,41476.0,41452.0,0.0444]
[1641911777531,0.01005351,41476.0,41464.0,0.120533]
[1641911777730,0.01005351,41476.0,41464.0,0.0444]
[1641911777932,0.3296195,41473.0,41464.0,0.0444]
[1641911778130,0.376468,41471.0,41464.0,0.0444]
[1641911778330,0.26444795,41468.0,41455.0,0.0444]
[1641911778531,0.0164675,41474.0,41462.0,0.39163284]
[1641911778730,0.0237904,41472.0,41462.0,0.44163284]
[1641911779178,0.0237904,41472.0,41462.0,0.49163284]
[1641911779480,0.00056885,41469.0,41463.0,0.24562228]
[1641911779676,0.00056885,41469.0,41468.0,1.32379452]
[1641911779877,0.0237904,41472.0,41469.0,0.3]
[1641911780079,0.0237904,41472.0,41468.0,0.05]
[1641911780276,0.0237904,41472.0,41465.0,0.120516]
[1641911780481,0.17977237,41471.0,41461.0,0.0444]
[1641911780678,0.13015873,41471.0,41463.0,0.39359462]
[1641911780884,0.0237904,41472.0,41465.0,0.004]
[1641911781278,0.0237904,41472.0,41465.0,0.34223174]
[1641911781478,0.0237904,41472.0,41465.0,0.054]
[1641911781979,0.0237904,41472.0,41465.0,0.004]
[1641911782177,0.0237904,41472.0,41461.0,0.41893799]
[1641911782379,0.0237904,41472.0,41456.0,0.0444]
[1641911782579,0.41514728,41471.0,41457.0,0.37884288]
[1641911782779,0.24312984,41471.0,41457.0,0.37884288]
[1641911783029,0.34312984,41471.0,41457.0,0.37884288]
[1641911783226,0.23674202,41470.0,41457.0,0.71993479]
[1641911783425,0.1,41471.0,41458.0,0.34729856]
[1641911783629,0.1,41471.0,41457.0,0.71993479]
[1641911783829,0.34729856,41470.0,41454.0,0.0444]
[1641911784029,0.44729856,41470.0,41454.0,0.0444]
[1641911784429,0.26902687,41464.0,41454.0,0.0444]
[1641911784629,0.00124302,41462.0,41446.0,0.00041171]
[1641911785032,0.0012509,41455.0,41454.0,0.004]
[1641911785229,0.44729856,41463.0,41454.0,0.004]
[1641911785430,0.28681293,41455.0,41446.0,0.00041178]
[1641911785632,0.00125534,41448.0,41446.0,0.00041178]
[1641911785829,0.1,41462.0,41446.0,0.00041178]
[1641911786036,0.00128427,41455.0,41446.0,0.00041178]
[1641911786228,0.1,41462.0,41446.0,0.00041178]
[1641911786528,0.20058,41466.0,41447.0,0.35783206]
[1641911786529,0.00126735,41458.0,41447.0,0.35783206]
[1641911786778,0.00121959,41466.0,41448.0,0.45199156]
[1641911786981,0.0008597,41471.0,41448.0,0.0444]
[1641911787184,0.0008597,41471.0,41449.0,0.08439005]
[1641911787381,0.0008597,41471.0,41450.0,0.0444]
[1641911787382,0.27822291,41462.0,41450.0,0.0444]
[1641911787684,0.27822291,41462.0,41447.0,0.39898251]
[1641911787685,0.34729856,41461.0,41453.0,0.28501302]
[1641911787881,0.00127028,41462.0,41454.0,0.0444]
[1641911788881,0.00127028,41462.0,41456.0,0.40268785]
[1641911789085,0.00071829,41471.0,41457.0,0.0444]
[1641911789284,0.00071829,41471.0,41459.0,0.120537]
[1641911789285,0.10379495,41471.0,41459.0,0.120537]
[1641911789582,0.00071829,41471.0,41459.0,0.0444]
[1641911789783,0.001238,41466.0,41459.0,0.0444]
[1641911789983,0.001238,41466.0,41456.0,0.05]
[1641911790185,0.29907526,41461.0,41456.0,0.05]
[1641911790437,0.34853011,41460.0,41453.0,0.1]
[1641911790634,0.34853011,41460.0,41453.0,0.05]
[1641911790835,0.34853011,41460.0,41448.0,0.5444]
[1641911790836,0.00123155,41460.0,41448.0,0.5444]
[1641911791033,0.00123155,41460.0,41448.0,0.0444]
[1641911791233,0.32615453,41460.0,41448.0,0.29737329]
[1641911791435,0.00120245,41460.0,41448.0,0.29737329]
[1641911791632,0.00120796,41455.0,41448.0,0.64225547]
[1641911791832,0.00124429,41458.0,41448.0,0.34488218]
[1641911792433,0.00124429,41458.0,41446.0,0.00035135]
[1641911792635,0.34729856,41459.0,41446.0,0.00035943]
[1641911792636,0.00125781,41454.0,41446.0,0.00035943]
[1641911793437,0.24560603,41454.0,41446.0,0.00035943]
[1641911793635,0.00125781,41454.0,41448.0,0.44702005]
[1641911793837,0.00125781,41454.0,41453.0,0.33030342]
[1641911794183,0.61075862,41464.0,41453.0,0.43030342]
[1641911794184,0.29513525,41464.0,41453.0,0.43030342]
[1641911794481,0.27458698,41460.0,41453.0,0.43030342]
[1641911794680,0.29631684,41459.0,41453.0,0.05]
[1641911794881,0.29639077,41459.0,41453.0,0.05]
[1641911795079,0.29038913,41459.0,41453.0,0.005]
[1641911795280,0.28085091,41460.0,41453.0,0.005]
[1641911795481,0.29452872,41459.0,41453.0,0.005]
[1641911795680,0.29701053,41459.0,41453.0,0.005]
[1641911796280,0.28902582,41459.0,41450.0,0.060293]
[1641911796483,0.24,41464.0,41456.0,0.41219824]
[1641911796685,0.24,41464.0,41457.0,0.0444]
[1641911797081,0.24,41464.0,41460.0,0.060275]
[1641911797280,0.24,41464.0,41461.0,0.0444]
[1641911797682,0.00221538,41471.0,41464.0,0.04218533]
[1641911797934,0.0237904,41472.0,41466.0,1.3]
[1641911798129,9.04e-05,41472.0,41467.0,0.0444]
[1641911798332,0.01300242,41476.0,41468.0,1.3]
[1641911798528,0.01300242,41476.0,41470.0,0.060258]
[1641911798733,0.01300242,41476.0,41468.0,0.1944]
[1641911798929,0.01005351,41476.0,41468.0,0.2004]
[1641911799130,0.01005351,41476.0,41468.0,0.1004]
[1641911799830,0.249279,41475.0,41468.0,0.1004]
[1641911800029,0.00073979,41473.0,41468.0,0.1004]
[1641911800231,0.00073979,41473.0,41469.0,0.6508097]
[1641911800431,0.00073979,41473.0,41469.0,0.40659034]
[1641911800630,0.00073979,41473.0,41469.0,0.50659034]
[1641911800831,0.00073979,41473.0,41469.0,0.56685434]
[1641911801031,0.00073979,41473.0,41470.0,0.0444]
[1641911801432,0.0029584,41483.0,41472.0,1.3]
[1641911801677,0.0029584,41483.0,41476.0,1.3]
[1641911801879,0.0029584,41483.0,41479.0,0.060241]
[1641911802077,0.0029584,41483.0,41480.0,0.0444]
[1641911802278,0.0126112,41490.0,41481.0,1.3]
[1641911802577,0.0126112,41490.0,41486.0,0.28744388]
[1641911802776,0.0126112,41490.0,41487.0,0.0444]
[1641911802977,0.0126112,41490.0,41487.0,0.1444]
[1641911803176,0.0306811,41488.0,41487.0,0.6444]
[1641911803378,0.0306811,41488.0,41487.0,0.51504867]
[1641911803578,0.0306811,41488.0,41487.0,0.08184867]
[1641911804077,0.0306811,41488.0,41487.0,0.0849924]
[1641911804280,0.0306811,41488.0,41487.0,0.56211644]
[1641911804677,0.0306811,41488.0,41487.0,0.82189116]
[1641911805079,0.01335753,41490.0,41487.0,0.82189116]
[1641911805080,0.01335753,41490.0,41488.0,1.40238527]
[1641911805278,0.01335753,41490.0,41488.0,0.58261227]
[1641911805532,0.32299013,41513.0,41491.0,1.35479769]
[1641911805732,0.42,41514.0,41501.0,0.12043]
[1641911805931,0.32556862,41513.0,41507.0,0.44658665]
[1641911806132,0.32556862,41513.0,41508.0,0.0444]
[1641911806733,0.33937398,41512.0,41508.0,0.0444]
[1641911807132,0.33937398,41512.0,41500.0,0.060222]
[1641911807133,0.45,41512.0,41509.0,0.33948256]
[1641911807334,0.32642821,41513.0,41509.0,0.33948256]
[1641911807534,0.32642821,41513.0,41510.0,0.05]
[1641911807933,0.00085959,41513.0,41510.0,0.05]
[1641911808536,0.42085958,41514.0,41506.0,0.060217]
[1641911808735,0.42085958,41514.0,41505.0,0.0444]
[1641911808938,1.0,41506.0,41505.0,0.0444]
[1641911809179,0.33146496,41512.0,41506.0,0.003]
[1641911809382,0.42,41512.0,41506.0,0.003]
[1641911809580,0.00085963,41508.0,41507.0,0.060214]
[1641911809781,0.00085963,41508.0,41506.0,0.003]
[1641911809980,0.00085963,41508.0,41506.0,0.053]
[1641911810380,0.00085963,41508.0,41506.0,0.003]
[1641911810581,0.00085963,41508.0,41501.0,0.5]
[1641911810582,1.1,41506.0,41501.0,0.5]
[1641911810781,0.33146496,41505.0,41502.0,0.0444]
[1641911810981,1.1,41506.0,41496.0,0.5482]
[1641911810982,1.2,41506.0,41496.0,0.5482]
[1641911811181,0.26449769,41500.0,41496.0,0.5482]
[1641911812185,0.00125506,41497.0,41493.0,0.5]
[1641911812383,0.29230124,41493.0,41487.0,0.007]
[1641911812582,0.00129182,41489.0,41487.0,0.007]
[1641911812933,0.00129182,41489.0,41480.0,0.120493]
[1641911813330,0.00129182,41489.0,41470.0,2.98919603]
[1641911813533,0.00129182,41489.0,41471.0,0.08436198]
[1641911813729,0.00129248,41483.0,41472.0,0.06027]
[1641911813928,0.00129248,41483.0,41470.0,0.5]
[1641911814129,0.31255531,41479.0,41472.0,0.24934799]
[1641911814332,0.00129475,41478.0,41472.0,0.24934799]
[1641911814929,0.00129475,41478.0,41473.0,0.060267]
[1641911815130,0.00629475,41478.0,41472.0,0.24934799]
[1641911815531,0.28184484,41478.0,41472.0,0.24934799]
[1641911815733,0.28184484,41478.0,41473.0,0.00046688]
[1641911815932,0.00629475,41478.0,41474.0,0.060266]
[1641911816231,0.00129475,41478.0,41473.0,0.00046688]
[1641911816687,0.50522979,41487.0,41475.0,0.36238559]
[1641911816892,0.00122857,41483.0,41475.0,0.76554543]
[1641911817188,0.006,41478.0,41476.0,0.110264]
[1641911817387,0.006,41478.0,41476.0,0.160264]
[1641911817789,0.006,41478.0,41476.0,0.220524]
[1641911817991,0.006,41478.0,41476.0,0.160264]
[1641911818188,0.0012176,41485.0,41475.0,0.36285144]
[1641911818189,0.0012176,41485.0,41475.0,0.00046685]
[1641911818391,0.00121223,41478.0,41475.0,0.00046685]
[1641911819189,0.00621223,41478.0,41475.0,0.00046685]
[1641911819395,0.00621223,41478.0,41474.0,0.00046686]
[1641911819595,0.005,41478.0,41474.0,0.00046686]
[1641911819791,0.005,41478.0,41475.0,0.120509]
[1641911819992,0.005,41478.0,41476.0,0.05]
[1641911820192,0.005,41478.0,41477.0,1.3444]
[1641911820446,0.58229782,41494.0,41486.0,0.24793004]
[1641911820639,0.58229782,41494.0,41486.0,0.29793004]
[1641911820837,0.58229782,41494.0,41489.0,0.060237]
[1641911821036,0.60029782,41494.0,41486.0,0.34793004]
[1641911821238,0.27837156,41494.0,41486.0,0.34793004]
[1641911821439,0.018,41494.0,41486.0,0.34793004]
[1641911821737,0.018,41494.0,41490.0,0.22287154]
[1641911821942,0.018,41494.0,41490.0,0.16263254]
[1641911822137,0.018,41494.0,41491.0,0.05]
[1641911822341,0.00071194,41498.0,41491.0,0.05]
[1641911822838,0.00142389,41498.0,41491.0,0.05]
[1641911823039,0.00371195,41498.0,41491.0,0.05]
[1641911823239,0.00124731,41496.0,41490.0,0.00039206]
[1641911823439,0.97398892,41491.0,41490.0,0.00039206]
[1641911823639,0.7,41490.0,41481.0,0.47117427]
[1641911823839,2.41409789,41501.0,41484.0,0.240961]
[1641911824041,2.41409789,41501.0,41493.0,0.00781567]
[1641911824486,0.00126789,41497.0,41493.0,0.00781567]
[1641911824685,0.27391896,41496.0,41493.0,0.00781567]
[1641911824885,0.27391896,41496.0,41481.0,0.08657327]
[1641911825084,0.00129691,41491.0,41480.0,0.07232299]
[1641911825282,0.00129691,41491.0,41482.0,0.060253]
[1641911825484,0.00129691,41491.0,41483.0,0.060246]
[1641911825684,0.00129691,41491.0,41484.0,0.04217]
[1641911825884,0.33156161,41489.0,41484.0,0.27898773]
[1641911826085,0.33156161,41489.0,41480.0,0.12232299]
[1641911826284,0.33156161,41489.0,41481.0,0.060253]
[1641911827088,0.33356161,41489.0,41484.0,0.31416611]
[1641911827288,0.33356161,41489.0,41484.0,0.36416611]
[1641911827485,0.002,41489.0,41485.0,0.48339705]
[1641911827943,0.00135791,41489.0,41485.0,0.58339705]
[1641911828331,0.00135791,41489.0,41486.0,0.060246]
[1641911828531,0.00135791,41489.0,41486.0,0.54674594]
[1641911828940,0.0008596,41497.0,41491.0,0.180696]
[1641911829132,0.0008596,41497.0,41494.0,0.27980674]
[1641911829333,0.0008596,41497.0,41492.0,0.05]
[1641911830136,0.0008596,41497.0,41491.0,0.170464]
[1641911830137,0.0008597,41497.0,41491.0,0.170464]
[1641911830335,0.26493036,41494.0,41491.0,0.163634]
[1641911830534,0.26493036,41494.0,41491.0,0.120464]
[1641911830738,0.26493036,41494.0,41488.0,0.00046894]
[1641911830935,0.0008597,41497.0,41490.0,0.060241]
[1641911831135,0.0008597,41497.0,41491.0,0.034]
[1641911831341,1.3,41496.0,41488.0,0.00046896]
[1641911831684,0.00126249,41491.0,41488.0,0.00046896]
[1641911831884,0.30214232,41490.0,41488.0,0.00046896]
[1641911832083,0.40214232,41490.0,41488.0,0.00046896]
[1641911832285,0.00126249,41491.0,41488.0,0.00046896]
[1641911832483,0.00126249,41491.0,41479.0,0.40890221]
[1641911832484,0.00126249,41491.0,41487.0,0.00039389]
[1641911833082,0.01026249,41491.0,41489.0,1.04162592]
[1641911833283,0.009,41491.0,41489.0,0.77496582]
[1641911833583,0.009,41491.0,41489.0,0.44585611]
[1641911833883,0.009,41491.0,41489.0,0.1]
[1641911834083,0.009,41491.0,41489.0,0.045]
[1641911834282,0.009,41491.0,41490.0,0.05]
[1641911834484,0.26066897,41491.0,41490.0,0.05]
[1641911834986,0.26066897,41491.0,41488.0,0.00039388]
[1641911835439,1.3,41496.0,41488.0,0.00039388]
[1641911836035,0.45,41495.0,41487.0,0.00040527]
[1641911836837,0.45,41495.0,41481.0,0.340972]
[1641911836838,0.27523063,41488.0,41478.0,0.39195877]
[1641911837040,0.33676416,41487.0,41478.0,0.27145477]
[1641911837238,0.28286884,41484.0,41474.0,0.120514]
[1641911837441,0.28286884,41484.0,41477.0,0.06026]
[1641911837640,0.00127002,41486.0,41474.0,0.120514]
[1641911837836,0.00127002,41486.0,41477.0,0.5253196]
[1641911838037,0.00127002,41486.0,41478.0,0.120504]
[1641911838238,0.01,41495.0,41481.0,0.26817512]
[1641911838438,0.32380544,41497.0,41487.0,0.120474]
[1641911838637,0.29562585,41494.0,41488.0,0.060237]
[1641911838838,0.29562585,41494.0,41488.0,0.05]
[1641911839038,0.00123384,41498.0,41488.0,0.05]
[1641911839285,0.011,41494.0,41488.0,0.05]
[1641911839485,0.011,41494.0,41487.0,0.120474]
[1641911839686,0.011,41494.0,41486.0,0.1]
[1641911839687,0.00085973,41493.0,41486.0,0.1]
[1641911839887,0.29351977,41488.0,41486.0,0.160245]
[1641911840190,0.29351977,41488.0,41486.0,0.110245]
[1641911840387,0.29351977,41488.0,41486.0,0.1]
[1641911840586,0.29351977,41488.0,41486.0,0.05]
[1641911841187,0.2765643,41487.0,41485.0,0.00046315]
[1641911841387,0.74851848,41487.0,41485.0,0.00046315]
[1641911841588,1.40055901,41486.0,41485.0,0.00046315]
[1641911841990,0.00085968,41493.0,41485.0,0.00046315]
[1641911842190,0.00085967,41493.0,41484.0,0.00046316]